[Event "Titled Tuesday Blitz April 12 Late 2022"]
[White "Gharibyan, Mamikon"]
[Black "Khamzin, Olzhas"]
[WhiteFideId "13308300"]
[BlackFideId "13701690"]
[WhiteElo "2254"]
[BlackElo "2155"]
[Result "1-0"]
[Round "09"]
[TimeControl "180+1"]
[Date "2022.04.12"]
[WhiteClock "0:00:41"]
[BlackClock "0:00:24"]

1. e4 {[%clk 0:03:00]}  c6 {[%clk 0:02:59]} 2. Nf3 {[%clk 0:02:56]}  d5 {[%clk 0:03:00]} 3. d3 {[%clk 0:02:57]}  Bg4 {[%clk 0:02:59]} 4. h3 {[%clk 0:02:54]}  Bh5 {[%clk 0:02:59]} 5. Qe2 {[%clk 0:02:51]}  e6 {[%clk 0:02:58]} 6. g3 {[%clk 0:02:45]}  Nd7 {[%clk 0:02:57]} 7. Bg2 {[%clk 0:02:45]}  Bc5 {[%clk 0:02:53]} 8. O-O {[%clk 0:02:43]}  Ne7 {[%clk 0:02:52]} 9. c3 {[%clk 0:02:41]}  Ne5 {[%clk 0:02:47]} 10. d4 {[%clk 0:02:32]}  Nxf3+ {[%clk 0:02:47]} 11. Bxf3 {[%clk 0:02:33]}  Bxf3 {[%clk 0:02:44]} 12. Qxf3 {[%clk 0:02:34]}  dxe4 {[%clk 0:02:43]} 13. Qxe4 {[%clk 0:02:35]}  Bd6 {[%clk 0:02:39]} 14. Nd2 {[%clk 0:02:33]}  O-O {[%clk 0:02:37]} 15. a4 {[%clk 0:02:32]}  a5 {[%clk 0:02:34]} 16. Nf3 {[%clk 0:02:30]}  Nd5 {[%clk 0:02:09]} 17. Kg2 {[%clk 0:02:26]}  Qf6 {[%clk 0:02:01]} 18. Re1 {[%clk 0:02:19]}  Qg6 {[%clk 0:02:00]} 19. h4 {[%clk 0:02:13]}  Qxe4 {[%clk 0:01:54]} 20. Rxe4 {[%clk 0:02:11]}  h6 {[%clk 0:01:52]} 21. Bd2 {[%clk 0:02:08]}  Nb6 {[%clk 0:01:47]} 22. b3 {[%clk 0:02:07]}  c5 {[%clk 0:01:42]} 23. Rd1 {[%clk 0:02:04]}  cxd4 {[%clk 0:01:40]} 24. Nxd4 {[%clk 0:01:59]}  Rfc8 {[%clk 0:01:32]} 25. Nb5 {[%clk 0:01:51]}  Bc5 {[%clk 0:01:27]} 26. Be3 {[%clk 0:01:44]}  Nd5 {[%clk 0:01:16]} 27. Bxc5 {[%clk 0:01:41]}  Rxc5 {[%clk 0:01:16]} 28. c4 {[%clk 0:01:41]}  Rxb5 {[%clk 0:01:16]} 29. cxb5 {[%clk 0:01:10]}  Nc3 {[%clk 0:01:15]} 30. Red4 {[%clk 0:01:10]}  Nxd1 {[%clk 0:01:13]} 31. Rxd1 {[%clk 0:01:11]}  Rc8 {[%clk 0:01:03]} 32. Rd7 {[%clk 0:01:10]}  b6 {[%clk 0:00:59]} 33. Rb7 {[%clk 0:01:09]}  Rc3 {[%clk 0:00:58]} 34. Rxb6 {[%clk 0:01:09]}  Rxb3 {[%clk 0:00:58]} 35. Ra6 {[%clk 0:01:10]}  e5 {[%clk 0:00:44]} 36. Rxa5 {[%clk 0:01:09]}  e4 {[%clk 0:00:43]} 37. Ra6 {[%clk 0:01:10]}  Rb2 {[%clk 0:00:43]} 38. Kf1 {[%clk 0:01:09]}  f5 {[%clk 0:00:42]} 39. h5 {[%clk 0:01:07]}  Rb1+ {[%clk 0:00:40]} 40. Kg2 {[%clk 0:01:01]}  Rb2 {[%clk 0:00:40]} 41. Kg1 {[%clk 0:01:00]}  Rb1+ {[%clk 0:00:41]} 42. Kg2 {[%clk 0:00:46]}  Rb2 {[%clk 0:00:42]} 43. Kf1 {[%clk 0:00:47]}  Rb1+ {[%clk 0:00:41]} 44. Ke2 {[%clk 0:00:47]}  Rb2+ {[%clk 0:00:41]} 45. Ke3 {[%clk 0:00:46]}  Rb3+ {[%clk 0:00:41]} 46. Kd4 {[%clk 0:00:47]}  Rf3 {[%clk 0:00:37]} 47. b6 {[%clk 0:00:46]}  Rb3 {[%clk 0:00:32]} 48. a5 {[%clk 0:00:43]}  Rb4+ {[%clk 0:00:32]} 49. Ke5 {[%clk 0:00:43]}  Rb5+ {[%clk 0:00:26]} 50. Kf4 {[%clk 0:00:43]}  Kh7 {[%clk 0:00:27]} 51. Ra7 {[%clk 0:00:43]}  Rb2 {[%clk 0:00:26]} 52. Kxf5 {[%clk 0:00:43]}  e3 {[%clk 0:00:22]} 53. fxe3 {[%clk 0:00:41]}  Rb5+ {[%clk 0:00:23]} 54. Kg4 {[%clk 0:00:42]}  Rxh5 {[%clk 0:00:24]} 55. Kxh5 {[%clk 0:00:41]} 1-0


[Site "https://www.chess.com"]

[Event "Titled Tuesday Blitz April 12 Late 2022"]
[White "Kalavannan, Koby"]
[Black "Minko, Dmitry"]
[WhiteFideId "425753"]
[BlackFideId "24188468"]
[WhiteElo "1927"]
[BlackElo "1928"]
[Result "0-1"]
[Round "09"]
[TimeControl "180+1"]
[Date "2022.04.13"]
[WhiteClock "0:00:13"]
[BlackClock "0:01:02"]

1. d4 {[%clk 0:02:59]}  d5 {[%clk 0:02:59]} 2. Nf3 {[%clk 0:02:58]}  Nf6 {[%clk 0:02:59]} 3. c4 {[%clk 0:02:58]}  e6 {[%clk 0:02:59]} 4. g3 {[%clk 0:02:58]}  dxc4 {[%clk 0:02:59]} 5. Bg2 {[%clk 0:02:58]}  c5 {[%clk 0:02:58]} 6. O-O {[%clk 0:02:55]}  Nc6 {[%clk 0:02:59]} 7. Qa4 {[%clk 0:02:43]}  Bd7 {[%clk 0:02:48]} 8. Qxc4 {[%clk 0:02:39]}  b5 {[%clk 0:02:48]} 9. Qd3 {[%clk 0:02:30]}  Rc8 {[%clk 0:02:41]} 10. dxc5 {[%clk 0:02:29]}  Bxc5 {[%clk 0:02:41]} 11. Qxb5 {[%clk 0:02:27]}  Nd4 {[%clk 0:02:35]} 12. Qd3 {[%clk 0:01:55]}  Nc2 {[%clk 0:02:13]} 13. Nc3 {[%clk 0:01:48]}  Nxa1 {[%clk 0:02:13]} 14. Bg5 {[%clk 0:01:48]}  O-O {[%clk 0:02:02]} 15. Rxa1 {[%clk 0:01:46]}  Bc6 {[%clk 0:01:57]} 16. Qc2 {[%clk 0:01:38]}  Qb6 {[%clk 0:01:50]} 17. e3 {[%clk 0:01:36]}  Nd5 {[%clk 0:01:48]} 18. Na4 {[%clk 0:01:25]}  Bxa4 {[%clk 0:01:31]} 19. Qxa4 {[%clk 0:01:25]}  Qxb2 {[%clk 0:01:31]} 20. Rf1 {[%clk 0:01:25]}  h6 {[%clk 0:01:27]} 21. Bf4 {[%clk 0:01:23]}  Nxf4 {[%clk 0:01:27]} 22. gxf4 {[%clk 0:01:21]}  Bb6 {[%clk 0:01:26]} 23. Ne5 {[%clk 0:01:19]}  Rc1 {[%clk 0:01:11]} 24. Nc4 {[%clk 0:00:43]}  Rxf1+ {[%clk 0:01:07]} 25. Bxf1 {[%clk 0:00:44]}  Qc1 {[%clk 0:01:07]} 26. Qd7 {[%clk 0:00:35]}  Rd8 {[%clk 0:01:05]} 27. Qc6 {[%clk 0:00:16]}  Rd1 {[%clk 0:01:01]} 28. Qe8+ {[%clk 0:00:16]}  Kh7 {[%clk 0:01:02]} 29. Qxf7 {[%clk 0:00:15]}  Rxf1+ {[%clk 0:01:02]} 30. Kg2 {[%clk 0:00:15]}  Rg1+ {[%clk 0:01:03]} 31. Kf3 {[%clk 0:00:15]}  Qd1+ {[%clk 0:01:01]} 32. Ke4 {[%clk 0:00:13]}  Qd5# {[%clk 0:01:02]} 0-1


[Site "https://www.chess.com"]

[Event "Titled Tuesday Blitz April 12 Late 2022"]
[White "Kanyamarala, Trisha"]
[Black "Mirzoev, Azer"]
[WhiteFideId "45004722"]
[BlackFideId "13400304"]
[WhiteElo "2079"]
[BlackElo "2525"]
[Result "0-1"]
[Round "09"]
[TimeControl "180+1"]
[Date "2022.04.13"]
[WhiteClock "0:00:02"]
[BlackClock "0:01:04"]

1. c4 {[%clk 0:02:52]}  e5 {[%clk 0:02:57]} 2. Nc3 {[%clk 0:02:52]}  Nc6 {[%clk 0:02:58]} 3. g3 {[%clk 0:02:51]}  Bc5 {[%clk 0:02:56]} 4. Bg2 {[%clk 0:02:51]}  d6 {[%clk 0:02:57]} 5. Nf3 {[%clk 0:02:52]}  a6 {[%clk 0:02:57]} 6. O-O {[%clk 0:02:52]}  Ba7 {[%clk 0:02:58]} 7. b3 {[%clk 0:02:48]}  Nge7 {[%clk 0:02:54]} 8. Bb2 {[%clk 0:02:48]}  O-O {[%clk 0:02:55]} 9. Rc1 {[%clk 0:02:35]}  f5 {[%clk 0:02:54]} 10. d3 {[%clk 0:02:32]}  f4 {[%clk 0:02:53]} 11. Nd5 {[%clk 0:02:26]}  Ng6 {[%clk 0:02:39]} 12. Qc2 {[%clk 0:02:04]}  Bg4 {[%clk 0:02:31]} 13. b4 {[%clk 0:01:46]}  Nce7 {[%clk 0:02:17]} 14. Nxe7+ {[%clk 0:01:41]}  Qxe7 {[%clk 0:02:16]} 15. c5 {[%clk 0:01:41]}  Rae8 {[%clk 0:02:03]} 16. cxd6 {[%clk 0:01:35]}  cxd6 {[%clk 0:02:02]} 17. Qc7 {[%clk 0:01:34]}  h6 {[%clk 0:01:50]} 18. a4 {[%clk 0:01:20]}  Rf7 {[%clk 0:01:44]} 19. Qxe7 {[%clk 0:01:17]}  Nxe7 {[%clk 0:01:43]} 20. Rc7 {[%clk 0:01:11]}  Nf5 {[%clk 0:01:31]} 21. Rfc1 {[%clk 0:00:54]}  fxg3 {[%clk 0:01:30]} 22. hxg3 {[%clk 0:00:50]}  Nxg3 {[%clk 0:01:30]} 23. Rxf7 {[%clk 0:00:35]}  Kxf7 {[%clk 0:01:29]} 24. Rc2 {[%clk 0:00:34]}  Nf5 {[%clk 0:01:21]} 25. Nh2 {[%clk 0:00:23]}  Bh5 {[%clk 0:01:20]} 26. Bxb7 {[%clk 0:00:23]}  Rb8 {[%clk 0:01:19]} 27. Bd5+ {[%clk 0:00:23]}  Kf6 {[%clk 0:01:19]} 28. Bc3 {[%clk 0:00:11]}  Bd4 {[%clk 0:01:15]} 29. Bxd4 {[%clk 0:00:04]}  Nxd4 {[%clk 0:01:15]} 30. Rc7 {[%clk 0:00:03]}  Nxe2+ {[%clk 0:01:12]} 31. Kf1 {[%clk 0:00:03]}  Rxb4 {[%clk 0:01:09]} 32. Nf3 {[%clk 0:00:02]}  Nf4 {[%clk 0:01:06]} 33. Kg1 {[%clk 0:00:02]}  Nxd5 {[%clk 0:01:04]} 0-1


[Site "https://www.chess.com"]

[Event "Titled Tuesday Blitz April 12 Late 2022"]
[White "Kavyev, Ruslan"]
[Black "De Souza, Cristiano Gomes"]
[WhiteFideId "34110981"]
[BlackFideId "2151758"]
[WhiteElo "2182"]
[BlackElo "2068"]
[Result "1-0"]
[Round "09"]
[TimeControl "180+1"]
[Date "2022.04.13"]
[WhiteClock "0:01:32"]
[BlackClock "0:02:00"]

1. d4 {[%clk 0:02:52]}  Nf6 {[%clk 0:02:59]} 2. c4 {[%clk 0:02:52]}  g6 {[%clk 0:02:59]} 3. Nc3 {[%clk 0:02:52]}  Bg7 {[%clk 0:03:00]} 4. e4 {[%clk 0:02:52]}  d6 {[%clk 0:03:00]} 5. Be2 {[%clk 0:02:52]}  O-O {[%clk 0:02:59]} 6. Be3 {[%clk 0:02:52]}  Nc6 {[%clk 0:02:58]} 7. d5 {[%clk 0:02:52]}  Ne5 {[%clk 0:02:53]} 8. f4 {[%clk 0:02:52]}  Ned7 {[%clk 0:02:53]} 9. Nf3 {[%clk 0:02:51]}  e5 {[%clk 0:02:53]} 10. fxe5 {[%clk 0:02:43]}  Nxe5 {[%clk 0:02:52]} 11. Nxe5 {[%clk 0:02:43]}  dxe5 {[%clk 0:02:52]} 12. O-O {[%clk 0:02:41]}  Ne8 {[%clk 0:02:51]} 13. c5 {[%clk 0:02:27]}  f5 {[%clk 0:02:48]} 14. Bc4 {[%clk 0:02:27]}  Kh8 {[%clk 0:02:47]} 15. Qd2 {[%clk 0:02:24]}  f4 {[%clk 0:02:46]} 16. Bf2 {[%clk 0:02:24]}  a6 {[%clk 0:02:46]} 17. Rad1 {[%clk 0:02:22]}  g5 {[%clk 0:02:44]} 18. d6 {[%clk 0:02:22]}  cxd6 {[%clk 0:02:44]} 19. cxd6 {[%clk 0:02:22]}  Bd7 {[%clk 0:02:43]} 20. Nd5 {[%clk 0:02:16]}  Nxd6 {[%clk 0:02:40]} 21. Bb3 {[%clk 0:02:02]}  Nxe4 {[%clk 0:02:38]} 22. Qe2 {[%clk 0:01:52]}  Nxf2 {[%clk 0:02:36]} 23. Qxf2 {[%clk 0:01:53]}  Bc6 {[%clk 0:02:34]} 24. Nb6 {[%clk 0:01:51]}  Qf6 {[%clk 0:02:33]} 25. Nxa8 {[%clk 0:01:52]}  Rxa8 {[%clk 0:02:34]} 26. Qc5 {[%clk 0:01:50]}  e4 {[%clk 0:02:33]} 27. Rd6 {[%clk 0:01:49]}  Qxb2 {[%clk 0:02:30]} 28. Rfd1 {[%clk 0:01:43]}  e3 {[%clk 0:02:29]} 29. Rd8+ {[%clk 0:01:40]}  Be8 {[%clk 0:02:10]} 30. Rxa8 {[%clk 0:01:33]}  Qf2+ {[%clk 0:02:07]} 31. Kh1 {[%clk 0:01:33]}  Bf6 {[%clk 0:02:00]} 32. Qf8# {[%clk 0:01:32]} 1-0


[Site "https://www.chess.com"]

[Event "Titled Tuesday Blitz April 12 Late 2022"]
[White "Kazakouski, Valery"]
[Black "Sarana, Alexey"]
[WhiteFideId "13507443"]
[BlackFideId "24133795"]
[WhiteElo "2524"]
[BlackElo "2666"]
[Result "0-1"]
[Round "09"]
[TimeControl "180+1"]
[Date "2022.04.12"]
[WhiteClock "0:00:05"]
[BlackClock "0:00:07"]

1. d4 {[%clk 0:02:57]}  Nf6 {[%clk 0:02:53]} 2. c4 {[%clk 0:02:58]}  e6 {[%clk 0:02:54]} 3. Nc3 {[%clk 0:02:57]}  Bb4 {[%clk 0:02:53]} 4. f3 {[%clk 0:02:57]}  d5 {[%clk 0:02:52]} 5. a3 {[%clk 0:02:57]}  Be7 {[%clk 0:02:53]} 6. e4 {[%clk 0:02:57]}  dxc4 {[%clk 0:02:53]} 7. Bxc4 {[%clk 0:02:56]}  c5 {[%clk 0:02:53]} 8. Be3 {[%clk 0:02:55]}  O-O {[%clk 0:02:53]} 9. dxc5 {[%clk 0:02:53]}  Qc7 {[%clk 0:01:48]} 10. b4 {[%clk 0:02:43]}  b6 {[%clk 0:01:48]} 11. Nb5 {[%clk 0:02:34]}  Qc6 {[%clk 0:01:47]} 12. Nd6 {[%clk 0:02:10]}  bxc5 {[%clk 0:01:40]} 13. Nxc8 {[%clk 0:01:17]}  Qxc8 {[%clk 0:01:35]} 14. b5 {[%clk 0:01:16]}  Nbd7 {[%clk 0:01:29]} 15. Ne2 {[%clk 0:01:16]}  Nb6 {[%clk 0:01:29]} 16. Qc2 {[%clk 0:01:16]}  a6 {[%clk 0:01:25]} 17. bxa6 {[%clk 0:01:12]}  Nxc4 {[%clk 0:01:26]} 18. Qxc4 {[%clk 0:01:13]}  Qxa6 {[%clk 0:01:26]} 19. Qxa6 {[%clk 0:01:06]}  Rxa6 {[%clk 0:01:27]} 20. Kf2 {[%clk 0:01:06]}  Rfa8 {[%clk 0:01:26]} 21. Rhb1 {[%clk 0:01:05]}  Kf8 {[%clk 0:01:17]} 22. Rb3 {[%clk 0:00:52]}  Nd7 {[%clk 0:01:08]} 23. Rd1 {[%clk 0:00:26]}  c4 {[%clk 0:00:55]} 24. Rc3 {[%clk 0:00:15]}  Ne5 {[%clk 0:00:56]} 25. Bd4 {[%clk 0:00:15]}  Nd3+ {[%clk 0:00:53]} 26. Kg3 {[%clk 0:00:15]}  e5 {[%clk 0:00:47]} 27. Be3 {[%clk 0:00:14]}  Rxa3 {[%clk 0:00:46]} 28. h4 {[%clk 0:00:07]}  f6 {[%clk 0:00:42]} 29. h5 {[%clk 0:00:07]}  Kf7 {[%clk 0:00:40]} 30. Rb1 {[%clk 0:00:07]}  Rxc3 {[%clk 0:00:36]} 31. Nxc3 {[%clk 0:00:08]}  Ra3 {[%clk 0:00:36]} 32. Nd5 {[%clk 0:00:08]}  Rb3 {[%clk 0:00:37]} 33. Ra1 {[%clk 0:00:09]}  Ba3 {[%clk 0:00:36]} 34. Bd2 {[%clk 0:00:08]}  Nc5 {[%clk 0:00:29]} 35. Rxa3 {[%clk 0:00:06]}  Rxa3 {[%clk 0:00:28]} 36. Bb4 {[%clk 0:00:07]}  Nxe4+ {[%clk 0:00:19]} 37. Kh2 {[%clk 0:00:07]}  Nc3 {[%clk 0:00:12]} 38. Bxc3 {[%clk 0:00:04]}  Ke6 {[%clk 0:00:12]} 39. Nc7+ {[%clk 0:00:02]}  Kd7 {[%clk 0:00:12]} 40. Bb4 {[%clk 0:00:02]}  Rb3 {[%clk 0:00:10]} 41. Nd5 {[%clk 0:00:01]}  Kc6 {[%clk 0:00:10]} 42. Ne7+ {[%clk 0:00:01]}  Kd7 {[%clk 0:00:10]} 43. Nd5 {[%clk 0:00:01]}  Kc6 {[%clk 0:00:05]} 44. Ne7+ {[%clk 0:00:02]}  Kb5 {[%clk 0:00:06]} 45. Bd2 {[%clk 0:00:02]}  Rd3 {[%clk 0:00:05]} 46. Bc1 {[%clk 0:00:02]}  c3 {[%clk 0:00:05]} 47. Nf5 {[%clk 0:00:03]}  g6 {[%clk 0:00:05]} 48. hxg6 {[%clk 0:00:04]}  hxg6 {[%clk 0:00:05]} 49. Nh4 {[%clk 0:00:04]}  g5 {[%clk 0:00:06]} 50. Nf5 {[%clk 0:00:05]}  Rd1 {[%clk 0:00:06]} 51. Be3 {[%clk 0:00:06]}  c2 {[%clk 0:00:07]} 52. Kg3 {[%clk 0:00:06]}  c1=Q {[%clk 0:00:07]} 53. Bxc1 {[%clk 0:00:07]}  Rxc1 {[%clk 0:00:07]} 54. Kg4 {[%clk 0:00:08]}  Rh1 {[%clk 0:00:07]} 55. Ng3 {[%clk 0:00:05]}  Rh4+ {[%clk 0:00:06]} 56. Kf5 {[%clk 0:00:06]}  Rf4+ {[%clk 0:00:07]} 57. Ke6 {[%clk 0:00:07]}  Kc4 {[%clk 0:00:07]} 58. Nh5 {[%clk 0:00:07]}  Rh4 {[%clk 0:00:03]} 59. Nxf6 {[%clk 0:00:07]}  Kd4 {[%clk 0:00:03]} 60. Kf5 {[%clk 0:00:07]}  Rh2 {[%clk 0:00:04]} 61. g4 {[%clk 0:00:07]}  Rf2 {[%clk 0:00:04]} 62. Kxg5 {[%clk 0:00:06]}  Rxf3 {[%clk 0:00:04]} 63. Kg6 {[%clk 0:00:06]}  e4 {[%clk 0:00:05]} 64. Nxe4 {[%clk 0:00:05]}  Kxe4 {[%clk 0:00:06]} 65. g5 {[%clk 0:00:05]}  Ke5 {[%clk 0:00:06]} 66. Kh6 {[%clk 0:00:04]}  Kf5 {[%clk 0:00:06]} 67. g6 {[%clk 0:00:05]}  Rg3 {[%clk 0:00:07]} 68. g7 {[%clk 0:00:05]}  Rh3# {[%clk 0:00:07]} 0-1


[Site "https://www.chess.com"]

[Event "Titled Tuesday Blitz April 12 Late 2022"]
[White "Lalanne, Pablo"]
[Black "Putri, Regita Desyari"]
[WhiteFideId "112151"]
[BlackFideId "7109083"]
[WhiteElo "2120"]
[BlackElo "1930"]
[Result "1/2-1/2"]
[Round "09"]
[TimeControl "180+1"]
[Date "2022.04.13"]
[WhiteClock "0:00:09"]
[BlackClock "0:00:34"]

1. e4 {[%clk 0:03:00]}  e5 {[%clk 0:02:59]} 2. Nf3 {[%clk 0:02:59]}  Nc6 {[%clk 0:02:59]} 3. Bb5 {[%clk 0:02:59]}  a6 {[%clk 0:02:59]} 4. Ba4 {[%clk 0:02:59]}  Nf6 {[%clk 0:03:00]} 5. O-O {[%clk 0:02:59]}  Be7 {[%clk 0:03:01]} 6. Re1 {[%clk 0:02:59]}  b5 {[%clk 0:03:01]} 7. Bb3 {[%clk 0:02:59]}  O-O {[%clk 0:03:01]} 8. h3 {[%clk 0:02:59]}  d6 {[%clk 0:03:01]} 9. c3 {[%clk 0:02:59]}  Bb7 {[%clk 0:03:02]} 10. d4 {[%clk 0:02:57]}  Re8 {[%clk 0:03:02]} 11. Nbd2 {[%clk 0:02:57]}  Bf8 {[%clk 0:03:02]} 12. a4 {[%clk 0:02:56]}  h6 {[%clk 0:02:58]} 13. Bc2 {[%clk 0:02:55]}  exd4 {[%clk 0:02:58]} 14. cxd4 {[%clk 0:02:56]}  Nb4 {[%clk 0:02:59]} 15. Bb1 {[%clk 0:02:56]}  c5 {[%clk 0:02:59]} 16. d5 {[%clk 0:02:57]}  c4 {[%clk 0:02:59]} 17. Nd4 {[%clk 0:02:53]}  Qb6 {[%clk 0:02:57]} 18. Nf5 {[%clk 0:02:53]}  Nd7 {[%clk 0:02:38]} 19. Ra3 {[%clk 0:02:52]}  g6 {[%clk 0:02:32]} 20. Rg3 {[%clk 0:02:50]}  Kh7 {[%clk 0:02:30]} 21. Ne3 {[%clk 0:02:12]}  Ne5 {[%clk 0:02:30]} 22. Kh2 {[%clk 0:02:06]}  Nbd3 {[%clk 0:02:25]} 23. Bxd3 {[%clk 0:01:57]}  Nxd3 {[%clk 0:02:26]} 24. Ng4 {[%clk 0:01:47]}  Bg7 {[%clk 0:02:22]} 25. Ree3 {[%clk 0:01:24]}  Re7 {[%clk 0:02:13]} 26. Nf3 {[%clk 0:01:04]}  Rae8 {[%clk 0:02:04]} 27. Rxd3 {[%clk 0:00:37]}  cxd3 {[%clk 0:02:04]} 28. Qd2 {[%clk 0:00:36]}  g5 {[%clk 0:01:41]} 29. Nxg5+ {[%clk 0:00:30]}  hxg5 {[%clk 0:01:41]} 30. Qxg5 {[%clk 0:00:30]}  Qd4 {[%clk 0:01:15]} 31. Qh5+ {[%clk 0:00:18]}  Kg8 {[%clk 0:01:15]} 32. Nh6+ {[%clk 0:00:18]}  Kf8 {[%clk 0:01:16]} 33. Nf5 {[%clk 0:00:18]}  Qe5 {[%clk 0:01:15]} 34. Nxg7 {[%clk 0:00:14]}  Qxh5 {[%clk 0:01:06]} 35. Nxh5 {[%clk 0:00:15]}  Rxe4 {[%clk 0:01:00]} 36. Nf6 {[%clk 0:00:11]}  Re1 {[%clk 0:00:56]} 37. Bh6+ {[%clk 0:00:11]}  Ke7 {[%clk 0:00:56]} 38. Nxe8 {[%clk 0:00:10]}  Kxe8 {[%clk 0:00:57]} 39. Rxd3 {[%clk 0:00:10]}  Re5 {[%clk 0:00:50]} 40. axb5 {[%clk 0:00:10]}  axb5 {[%clk 0:00:50]} 41. Bf4 {[%clk 0:00:09]}  Rxd5 {[%clk 0:00:50]} 42. Rxd5 {[%clk 0:00:09]}  Bxd5 {[%clk 0:00:51]} 43. Bxd6 {[%clk 0:00:10]}  Kd7 {[%clk 0:00:51]} 44. Be5 {[%clk 0:00:10]}  Ke6 {[%clk 0:00:51]} 45. f4 {[%clk 0:00:11]}  f5 {[%clk 0:00:48]} 46. g4 {[%clk 0:00:10]}  fxg4 {[%clk 0:00:47]} 47. hxg4 {[%clk 0:00:11]}  Bf3 {[%clk 0:00:47]} 48. Kg3 {[%clk 0:00:11]}  Bd1 {[%clk 0:00:47]} 49. Bc3 {[%clk 0:00:11]}  Bc2 {[%clk 0:00:47]} 50. f5+ {[%clk 0:00:10]}  Kf7 {[%clk 0:00:41]} 51. Kf4 {[%clk 0:00:10]}  Bd3 {[%clk 0:00:36]} 52. g5 {[%clk 0:00:11]}  Bc2 {[%clk 0:00:33]} 53. g6+ {[%clk 0:00:11]}  Kf8 {[%clk 0:00:28]} 54. Kg5 {[%clk 0:00:11]}  Kg8 {[%clk 0:00:28]} 55. f6 {[%clk 0:00:11]}  Bb3 {[%clk 0:00:28]} 56. f7+ {[%clk 0:00:09]}  Bxf7 {[%clk 0:00:28]} 57. gxf7+ {[%clk 0:00:10]}  Kxf7 {[%clk 0:00:29]} 58. Kf5 {[%clk 0:00:11]}  Ke7 {[%clk 0:00:29]} 59. Ke5 {[%clk 0:00:11]}  Kd7 {[%clk 0:00:30]} 60. Kd5 {[%clk 0:00:12]}  Kc7 {[%clk 0:00:31]} 61. Kc5 {[%clk 0:00:12]}  Kb7 {[%clk 0:00:32]} 62. Kxb5 {[%clk 0:00:12]}  Kc7 {[%clk 0:00:32]} 63. b4 {[%clk 0:00:12]}  Kb7 {[%clk 0:00:33]} 64. Be5 {[%clk 0:00:11]}  Ka7 {[%clk 0:00:33]} 65. Kc6 {[%clk 0:00:11]}  Ka6 {[%clk 0:00:34]} 66. Bd4 {[%clk 0:00:09]} 1/2-1/2


[Site "https://www.chess.com"]

[Event "Titled Tuesday Blitz April 12 Late 2022"]
[White "Le Goff, Ronan"]
[Black "Goryachkina, Aleksandra"]
[WhiteFideId "612073"]
[BlackFideId "4147103"]
[WhiteElo "2276"]
[BlackElo "2426"]
[Result "0-1"]
[Round "09"]
[TimeControl "180+1"]
[Date "2022.04.12"]
[WhiteClock "0:00:03"]
[BlackClock "0:00:04"]

1. d4 {[%clk 0:02:58]}  d5 {[%clk 0:02:58]} 2. Nf3 {[%clk 0:02:57]}  Nf6 {[%clk 0:02:58]} 3. g3 {[%clk 0:02:57]}  Bf5 {[%clk 0:02:54]} 4. c4 {[%clk 0:02:57]}  dxc4 {[%clk 0:02:39]} 5. Nc3 {[%clk 0:02:53]}  e6 {[%clk 0:02:36]} 6. Bg2 {[%clk 0:02:53]}  c6 {[%clk 0:02:34]} 7. Ne5 {[%clk 0:02:49]}  Nbd7 {[%clk 0:02:26]} 8. Nxc4 {[%clk 0:02:48]}  Bb4 {[%clk 0:02:12]} 9. O-O {[%clk 0:02:42]}  O-O {[%clk 0:02:11]} 10. a3 {[%clk 0:02:22]}  Bxc3 {[%clk 0:02:05]} 11. bxc3 {[%clk 0:02:23]}  Be4 {[%clk 0:02:05]} 12. f3 {[%clk 0:02:22]}  Bd5 {[%clk 0:01:59]} 13. Nd2 {[%clk 0:02:15]}  c5 {[%clk 0:01:51]} 14. e3 {[%clk 0:02:13]}  cxd4 {[%clk 0:01:46]} 15. cxd4 {[%clk 0:02:13]}  Rc8 {[%clk 0:01:45]} 16. a4 {[%clk 0:02:10]}  Re8 {[%clk 0:01:43]} 17. a5 {[%clk 0:02:09]}  b5 {[%clk 0:01:34]} 18. Ne4 {[%clk 0:02:05]}  Nxe4 {[%clk 0:01:31]} 19. fxe4 {[%clk 0:02:05]}  Bc4 {[%clk 0:01:31]} 20. Rf2 {[%clk 0:02:02]}  b4 {[%clk 0:01:30]} 21. Bd2 {[%clk 0:01:57]}  Qe7 {[%clk 0:01:25]} 22. Qa4 {[%clk 0:01:51]}  b3 {[%clk 0:01:16]} 23. Bb4 {[%clk 0:01:47]}  Qd8 {[%clk 0:01:15]} 24. e5 {[%clk 0:01:33]}  Nf8 {[%clk 0:00:57]} 25. Bd6 {[%clk 0:01:22]}  Ng6 {[%clk 0:00:54]} 26. Rc1 {[%clk 0:01:16]}  Bd3 {[%clk 0:00:20]} 27. Rxc8 {[%clk 0:00:42]}  Qxc8 {[%clk 0:00:21]} 28. Qxb3 {[%clk 0:00:42]}  Qc1+ {[%clk 0:00:19]} 29. Bf1 {[%clk 0:00:42]}  Bxf1 {[%clk 0:00:19]} 30. Rxf1 {[%clk 0:00:42]}  Qc6 {[%clk 0:00:19]} 31. Qb2 {[%clk 0:00:26]}  h5 {[%clk 0:00:19]} 32. Rc1 {[%clk 0:00:25]}  Qe4 {[%clk 0:00:18]} 33. Qf2 {[%clk 0:00:24]}  h4 {[%clk 0:00:17]} 34. Rf1 {[%clk 0:00:19]}  Kh7 {[%clk 0:00:11]} 35. Qf3 {[%clk 0:00:16]}  Qd3 {[%clk 0:00:10]} 36. gxh4 {[%clk 0:00:13]}  Rc8 {[%clk 0:00:04]} 37. h5 {[%clk 0:00:13]}  Nh4 {[%clk 0:00:05]} 38. Qg3 {[%clk 0:00:11]}  Rc2 {[%clk 0:00:03]} 39. Bc5 {[%clk 0:00:09]}  Nf5 {[%clk 0:00:02]} 40. Qf3 {[%clk 0:00:09]}  Nxe3 {[%clk 0:00:01]} 41. Qxf7 {[%clk 0:00:07]}  Nxf1 {[%clk 0:00:01]} 42. Qxf1 {[%clk 0:00:07]}  Qe3+ {[%clk 0:00:02]} 43. Kh1 {[%clk 0:00:06]}  Qe4+ {[%clk 0:00:02]} 44. Kg1 {[%clk 0:00:06]}  Qg4+ {[%clk 0:00:03]} 45. Kh1 {[%clk 0:00:07]}  Rd2 {[%clk 0:00:03]} 46. Qb1+ {[%clk 0:00:06]}  Kh6 {[%clk 0:00:03]} 47. Qc1 {[%clk 0:00:04]}  Qf3+ {[%clk 0:00:03]} 48. Kg1 {[%clk 0:00:03]}  Qg2# {[%clk 0:00:04]} 0-1


[Site "https://www.chess.com"]

[Event "Titled Tuesday Blitz April 12 Late 2022"]
[White "Lewicki, Miroslaw"]
[Black "Leitao, Rafael"]
[WhiteFideId "1113380"]
[BlackFideId "2101246"]
[WhiteElo "2283"]
[BlackElo "2609"]
[Result "0-1"]
[Round "09"]
[TimeControl "180+1"]
[Date "2022.04.12"]
[WhiteClock "0:01:44"]
[BlackClock "0:01:00"]

1. g3 {[%clk 0:03:00]}  Nf6 {[%clk 0:02:59]} 2. Bg2 {[%clk 0:03:00]}  d5 {[%clk 0:02:59]} 3. e3 {[%clk 0:03:00]}  g6 {[%clk 0:02:58]} 4. Ne2 {[%clk 0:03:01]}  Bg7 {[%clk 0:02:59]} 5. O-O {[%clk 0:03:01]}  O-O {[%clk 0:02:59]} 6. d4 {[%clk 0:02:59]}  c5 {[%clk 0:02:56]} 7. dxc5 {[%clk 0:02:59]}  Na6 {[%clk 0:02:55]} 8. Nbc3 {[%clk 0:02:59]}  Nxc5 {[%clk 0:02:40]} 9. Nxd5 {[%clk 0:02:59]}  Nxd5 {[%clk 0:02:40]} 10. Qxd5 {[%clk 0:02:59]}  Qxd5 {[%clk 0:02:34]} 11. Bxd5 {[%clk 0:02:59]}  Bf5 {[%clk 0:02:29]} 12. Nd4 {[%clk 0:02:53]}  Bh3 {[%clk 0:02:12]} 13. Bg2 {[%clk 0:02:52]}  Bxg2 {[%clk 0:02:11]} 14. Kxg2 {[%clk 0:02:53]}  Rfd8 {[%clk 0:02:12]} 15. c3 {[%clk 0:02:52]}  e5 {[%clk 0:02:03]} 16. Nb3 {[%clk 0:02:52]}  Na4 {[%clk 0:02:02]} 17. Kf3 {[%clk 0:02:49]}  Rd3 {[%clk 0:01:52]} 18. Ke2 {[%clk 0:02:46]}  Rad8 {[%clk 0:01:51]} 19. e4 {[%clk 0:02:46]}  f5 {[%clk 0:01:48]} 20. exf5 {[%clk 0:02:45]}  gxf5 {[%clk 0:01:47]} 21. Bg5 {[%clk 0:02:44]}  R8d7 {[%clk 0:01:41]} 22. Rab1 {[%clk 0:02:44]}  e4 {[%clk 0:01:30]} 23. Be3 {[%clk 0:02:37]}  Bxc3 {[%clk 0:01:28]} 24. Rfc1 {[%clk 0:02:27]}  Bxb2 {[%clk 0:01:24]} 25. Rc8+ {[%clk 0:02:27]}  Kf7 {[%clk 0:01:22]} 26. Rxb2 {[%clk 0:02:10]}  Nxb2 {[%clk 0:01:22]} 27. Nc5 {[%clk 0:02:11]}  Rc3 {[%clk 0:01:13]} 28. Rh8 {[%clk 0:01:47]}  Rc2+ {[%clk 0:01:01]} 29. Kf1 {[%clk 0:01:47]}  Rd1+ {[%clk 0:01:02]} 30. Kg2 {[%clk 0:01:47]}  Nc4 {[%clk 0:01:02]} 31. Rxh7+ {[%clk 0:01:44]}  Kg8 {[%clk 0:01:00]} 0-1


[Site "https://www.chess.com"]